bitfinex-derivatives/quotes_BTCF0:USTF0_20210404
["timestamp","ask_amount","ask_price","bid_price","bid_amount"]
[1617494400223,0.45833291,57056.0,57043.0,0.10725655]
[1617494400422,0.45833291,57056.0,57045.0,0.36692706]
[1617494400623,0.15901,57056.0,57047.0,0.30577255]
[1617494401625,0.29903886,57049.0,57034.0,0.30580727]
[1617494402025,0.2989961,57050.0,57035.0,0.41306243]
[1617494402424,0.29901025,57049.0,57035.0,0.10725655]
[1617494402624,0.29901025,57049.0,57034.0,0.30580457]
[1617494403027,0.29920245,57048.0,57032.0,0.30581721]
[1617494403227,0.29920245,57048.0,57031.0,0.30582148]
[1617494403427,0.29915734,57046.0,57031.0,0.30582148]
[1617494403829,0.29903251,57042.0,57027.0,0.30584564]
[1617494404030,0.10725655,57028.0,57027.0,0.30584564]
[1617494404229,0.25216655,57028.0,57027.0,0.30584564]
[1617494404630,0.25216655,57028.0,57023.0,0.30586338]
[1617494405031,0.25216655,57028.0,57021.0,0.30586661]
[1617494405634,0.25216655,57028.0,56999.0,0.206554]
[1617494405635,0.25216655,57028.0,57019.0,0.30587377]
[1617494406034,0.14491,57028.0,57021.0,0.30587908]
[1617494406439,0.14491,57028.0,57019.0,0.30587937]
[1617494406835,0.14491,57028.0,57014.0,0.10725655]
[1617494406836,0.14491,57028.0,57017.0,0.30588774]
[1617494407236,0.29959835,57025.0,57022.0,0.30688719]
[1617494408042,0.10725655,57023.0,57022.0,0.30688719]
[1617494408634,0.40651218,57023.0,57020.0,0.30690478]
[1617494408839,0.60651218,57023.0,57020.0,0.30690478]
[1617494409056,0.60651218,57023.0,56980.0,1.5]
[1617494409057,0.2989035,57021.0,57018.0,0.30691138]
[1617494409435,0.65688658,57019.0,57013.0,0.30691382]
[1617494409634,0.2,57018.0,57013.0,0.30691382]
[1617494409835,0.29863902,57017.0,57013.0,0.30691382]
[1617494410035,0.10725655,57014.0,57013.0,0.30691382]
[1617494410235,0.22481655,57014.0,57011.0,0.30692339]
[1617494410639,0.22481655,57014.0,57009.0,0.36830806]
[1617494410640,0.22481655,57014.0,57012.0,0.306925]
[1617494411038,0.52340968,57014.0,57011.0,0.3069328]
[1617494411238,0.22481655,57014.0,57011.0,0.3069328]
[1617494411939,0.22481655,57014.0,57012.0,0.30693193]
[1617494412339,0.22481655,57014.0,57007.0,0.10725655]
[1617494412740,0.2,57013.0,57007.0,0.10725655]
[1617494413740,0.2,57013.0,56999.0,0.30507814]
[1617494414141,0.10725655,57000.0,56999.0,0.30507814]
[1617494414341,0.25239655,57000.0,56999.0,0.30507814]
[1617494414541,0.25239655,57000.0,56996.0,0.47335031]
[1617494414542,0.25239655,57000.0,56996.0,0.41235714]
[1617494414941,0.25239655,57000.0,56996.0,0.30510059]
[1617494415341,0.25239655,57000.0,56977.0,0.0518]
[1617494415342,0.25239655,57000.0,56995.0,0.3051087]
[1617494415742,0.25239655,57000.0,56987.0,0.44749277]
[1617494415743,0.25239655,57000.0,56994.0,0.30510982]
[1617494416343,0.25239655,57000.0,56985.0,0.10725655]
[1617494416344,0.25239655,57000.0,56992.0,0.30511639]
[1617494417344,0.25239655,57000.0,56989.0,0.36613967]
[1617494417345,0.25239655,57000.0,56989.0,0.30512344]
[1617494417545,0.2,56999.0,56989.0,0.30512344]
[1617494417748,0.2,56999.0,56985.0,0.10725655]
[1617494417749,0.25239655,57000.0,56988.0,0.30512542]
[1617494418147,0.25239655,57000.0,56986.0,0.30513376]
[1617494418148,0.10725655,56989.0,56986.0,0.30513376]
[1617494419149,0.10725655,56989.0,56983.0,0.30521502]
[1617494419150,0.2,56988.0,56983.0,0.30521502]
[1617494419348,0.12544,56988.0,56983.0,0.30521502]
[1617494419548,1.5,56987.0,56977.0,0.30524947]
[1617494419949,1.5,56987.0,56969.0,0.30526782]
[1617494420150,0.2,56986.0,56969.0,0.30526782]
[1617494420349,0.10725655,56970.0,56967.0,0.30527693]
[1617494420549,0.23800655,56970.0,56967.0,0.30527693]
[1617494420750,0.23800655,56970.0,56964.0,0.36633232]
[1617494420751,0.23800655,56970.0,56964.0,0.30528367]
[1617494421151,0.23800655,56970.0,56963.0,0.10725655]
[1617494421152,0.2,56969.0,56963.0,0.3052825]
[1617494421350,1.7,56969.0,56963.0,0.3052825]
[1617494421753,1.7,56969.0,56960.0,0.30531073]
[1617494422152,1.7,56969.0,56952.0,0.44778906]
[1617494422153,1.7,56969.0,56952.0,0.305321]
[1617494422353,0.10725655,56961.0,56952.0,0.305321]
[1617494422553,0.2,56960.0,56954.0,0.30532665]
[1617494422953,1.5,56959.0,56954.0,0.30532665]
[1617494423154,0.2,56958.0,56941.0,0.10725655]
[1617494423354,1.5,56957.0,56927.0,0.30233204]
[1617494423556,0.2,56956.0,56927.0,0.30233204]
[1617494423754,1.5,56955.0,56927.0,0.30233204]
[1617494423953,1.5,56955.0,56924.0,0.36279845]
[1617494423954,0.2,56954.0,56924.0,0.30236294]
[1617494424155,1.5,56953.0,56924.0,0.30236294]
[1617494424354,1.5,56953.0,56931.0,0.10725655]
[1617494424554,1.5,56953.0,56912.0,0.30244022]
[1617494424555,0.0524,56952.0,56912.0,0.30244022]
[1617494424757,0.2524,56952.0,56912.0,0.30244022]
[1617494424956,1.5,56951.0,56908.0,0.30244561]
[1617494425158,1.5,56951.0,56906.0,0.30247972]
[1617494425556,0.15201,56958.0,56906.0,0.30247972]
[1617494425756,0.15201,56958.0,56904.0,0.30248011]
[1617494426158,0.15201,56958.0,56903.0,0.4531]
[1617494426362,0.2,56957.0,56918.0,0.10725655]
[1617494426561,0.0525,56956.0,56918.0,0.10725655]
[1617494426774,1.5525,56956.0,56903.0,0.4531]
[1617494426964,0.2,56955.0,56897.0,0.30249473]
[1617494427170,0.2,56955.0,56896.0,0.49]
[1617494427171,1.5,56954.0,56896.0,0.49]
[1617494427358,0.2,56953.0,56895.0,0.30252116]
[1617494427558,0.2,56953.0,56886.0,0.30255054]
[1617494427559,1.5,56952.0,56886.0,0.30255054]
[1617494427757,0.2,56951.0,56887.0,0.0526]
[1617494427959,1.5,56950.0,56887.0,0.0526]
[1617494428160,0.2,56949.0,56881.0,0.36307715]
[1617494428368,0.10725655,56888.0,56881.0,0.36307715]
[1617494428581,0.10725655,56888.0,56876.0,0.36317728]
[1617494428582,0.22493655,56888.0,56876.0,0.36317728]
[1617494428772,0.2,56887.0,56876.0,0.36317728]
[1617494428960,1.5,56886.0,56852.0,0.36323136]
[1617494429159,0.2662593,56879.0,56852.0,0.36323136]
[1617494429361,1.5,56878.0,56839.0,0.36321467]
[1617494429762,1.5,56878.0,56832.0,0.20847989]
[1617494429961,0.13515619,56872.0,56832.0,0.20847989]
[1617494430162,1.5,56871.0,56832.0,0.02747724]
[1617494430362,0.10725655,56851.0,56832.0,0.02747724]
[1617494430562,0.25341655,56851.0,56824.0,0.15889098]
[1617494431963,0.10725655,56851.0,56824.0,0.15889098]
[1617494432362,0.10725655,56851.0,56850.0,0.10725655]
[1617494433163,0.34608559,56872.0,56850.0,0.10725655]
[1617494433363,0.34608559,56872.0,56850.0,0.25474655]
[1617494433563,0.34643016,56878.0,56850.0,0.25474655]
[1617494433764,0.34688273,56884.0,56850.0,0.14749]
[1617494434365,0.09283685,56889.0,56879.0,0.10725655]
[1617494434565,0.09283685,56889.0,56879.0,0.14869]
[1617494434764,0.09283685,56889.0,56879.0,0.09713913]
[1617494434969,0.09283685,56889.0,56879.0,0.09610811]
[1617494435166,0.09283685,56889.0,56879.0,0.01300811]
[1617494435966,0.09283685,56889.0,56850.0,0.14749]
[1617494436367,0.09283685,56889.0,56875.0,0.10725655]
[1617494438368,0.09283685,56889.0,56881.0,0.10725655]
[1617494439170,0.09283685,56889.0,56829.0,1.5]
[1617494439373,0.25691685,56889.0,56829.0,1.5]
[1617494440369,0.25691685,56889.0,56868.0,0.10725655]
[1617494441970,0.25691685,56889.0,56837.0,1.5]
[1617494442371,0.25691685,56889.0,56855.0,0.10725655]
[1617494443573,1.75691685,56889.0,56855.0,0.10725655]
[1617494443772,1.75691685,56889.0,56789.0,1.5]
[1617494443971,0.2,56888.0,56792.0,0.0531]
[1617494444175,0.2,56888.0,56789.0,1.5]
[1617494444176,1.5,56887.0,56789.0,1.5]
[1617494444373,0.10725655,56827.0,56822.0,0.10725655]
[1617494444571,0.10725655,56827.0,56826.0,0.4756]
[1617494444572,0.23532655,56827.0,56826.0,0.4756]
[1617494445972,0.23532655,56827.0,56826.0,0.46956855]
[1617494446172,0.23532655,56827.0,56822.0,0.10725655]
[1617494447372,0.23532655,56827.0,56788.0,0.11469158]
[1617494448173,0.23532655,56827.0,56806.0,0.11783846]
[1617494448373,0.10725655,56807.0,56806.0,0.11783846]
[1617494448576,0.27485655,56807.0,56806.0,0.11783846]
[1617494449374,1.77485655,56807.0,56806.0,0.11783846]
[1617494449577,0.27485655,56807.0,56806.0,0.11783846]
[1617494449975,0.27485655,56807.0,56806.0,0.0247874]
[1617494450574,1.77485655,56807.0,56806.0,0.0247874]
[1617494451375,1.77485655,56807.0,56788.0,0.22194813]
[1617494451575,1.77485655,56807.0,56788.0,0.11469158]
[1617494451776,0.0526,56806.0,56788.0,0.11469158]
[1617494452375,0.10725655,56789.0,56788.0,0.11469158]
[1617494452576,0.22927655,56789.0,56788.0,0.11469158]
[1617494452978,1.72927655,56789.0,56761.0,0.15327835]
[1617494454379,0.10725655,56771.0,56761.0,0.15327835]
[1617494454579,1.76831655,56771.0,56761.0,0.15327835]
[1617494454981,1.76831655,56771.0,56761.0,0.09007835]
[1617494455180,1.76831655,56771.0,56761.0,0.05297835]
[1617494455381,1.76831655,56771.0,56721.0,0.22738096]
[1617494455781,1.82171655,56771.0,56721.0,0.22738096]
[1617494456381,0.10725655,56722.0,56721.0,0.22738096]
[1617494456581,0.27272655,56722.0,56721.0,0.22738096]
[1617494457584,1.77272655,56722.0,56721.0,0.22738096]
[1617494457981,0.27272655,56722.0,56721.0,0.22738096]
[1617494458383,0.32532655,56722.0,56721.0,0.22738096]
[1617494458581,1.77272655,56722.0,56721.0,0.22738096]
[1617494459582,1.77272655,56722.0,56721.0,0.28068096]
[1617494459782,1.77272655,56722.0,56721.0,0.22738096]
[1617494459984,1.77272655,56722.0,56692.0,0.0524]
[1617494460183,3.3226,56721.0,56692.0,0.0524]
[1617494460381,0.10725655,56694.0,56692.0,0.0524]
[1617494461383,0.10725655,56694.0,56657.0,0.2]
[1617494461983,0.0535,56720.0,56640.0,0.20116313]
[1617494461984,0.04845655,56720.0,56658.0,0.2]
[1617494462183,3.2705,56721.0,56689.0,0.15464]
[1617494462382,3.2705,56721.0,56720.0,0.10725655]
[1617494462584,0.10725655,56724.0,56720.0,0.24577655]
[1617494462783,0.0524,56755.0,56720.0,0.24577655]
[1617494462984,5.0,56744.0,56720.0,0.24577655]
[1617494463384,1.0,56728.0,56720.0,0.24577655]
[1617494463588,1.0,56726.0,56720.0,0.24577655]
[1617494463783,1.0,56726.0,56721.0,0.0533]
[1617494463983,1.0,56728.0,56720.0,0.24577655]
[1617494464385,1.0,56722.0,56720.0,0.13852]
[1617494464585,1.0,56724.0,56720.0,0.13852]
[1617494464985,1.0,56743.0,56720.0,0.13852]
[1617494465188,1.0,56748.0,56721.0,0.0524]
[1617494465586,1.0,56750.0,56722.0,1.0]
[1617494465788,1.5,56778.0,56721.0,0.0524]
[1617494465985,1.0,56743.0,56720.0,0.13852]
[1617494466185,1.0,56744.0,56721.0,0.4959]
[1617494466386,1.0,56746.0,56743.0,0.10725655]
[1617494466585,0.10725655,56754.0,56743.0,0.27677655]
[1617494466785,1.10725655,56754.0,56743.0,0.27677655]
[1617494466988,0.10725655,56754.0,56743.0,0.27677655]
[1617494467188,1.10725655,56754.0,56743.0,0.27677655]
[1617494467388,0.0521,56825.0,56743.0,0.27677655]
[1617494467389,1.0,56764.0,56743.0,0.27677655]
[1617494467587,1.0,56770.0,56749.0,3.75]
[1617494467790,1.0,56773.0,56749.0,3.75]
[1617494467988,1.0,56776.0,56749.0,3.75]
[1617494468389,3.6183,56826.0,56775.0,0.10725655]
[1617494468390,0.10725655,56790.0,56775.0,0.10725655]
[1617494468589,0.10725655,56790.0,56775.0,0.13459]
[1617494468989,1.0,56776.0,56775.0,0.13459]
[1617494469188,0.10725655,56790.0,56775.0,0.12582045]
[1617494469390,1.0,56776.0,56775.0,0.12478778]
[1617494469592,0.26184655,56790.0,56750.0,0.4891]
[1617494469790,1.1387,56776.0,56750.0,0.4891]
[1617494469995,0.1387,56776.0,56750.0,0.4891]
[1617494470190,0.1387,56776.0,56709.0,3.3026]
[1617494470394,3.2882,56755.0,56714.0,0.10725655]
[1617494470591,1.7,56754.0,56694.0,0.4978]
[1617494470790,1.0,56710.0,56694.0,0.4958]
[1617494470997,0.12252,56710.0,56694.0,0.4958]
[1617494471192,1.0,56708.0,56694.0,0.4958]
[1617494471393,0.12252,56710.0,56694.0,0.4958]
[1617494471394,1.0,56700.0,56694.0,0.4958]
[1617494471596,1.0,56695.0,56694.0,0.4958]
[1617494471992,0.13357,56695.0,56694.0,0.4958]
[1617494472197,1.13357,56695.0,56694.0,0.4958]
[1617494472594,1.24082655,56695.0,56694.0,0.4958]
[1617494473193,0.24082655,56695.0,56694.0,0.4958]
[1617494473395,1.10725655,56695.0,56694.0,0.4958]
[1617494473796,0.10725655,56695.0,56694.0,0.4958]
[1617494474194,3.102,56701.0,56694.0,0.4958]
[1617494474394,3.102,56701.0,56694.0,0.61386]
[1617494474595,3.102,56701.0,56700.0,0.10725655]
[1617494474995,3.1,56701.0,56700.0,0.10725655]
[1617494475795,1.0,56712.0,56700.0,0.27083655]
[1617494475995,1.0,56733.0,56700.0,1.27083655]
[1617494476194,1.0,56733.0,56705.0,1.0]
[1617494476396,1.0,56728.0,56700.0,1.27083655]
[1617494476596,0.10725655,56725.0,56700.0,0.16358]
[1617494477196,0.10725655,56725.0,56700.0,1.16358]
[1617494477397,0.10725655,56725.0,56700.0,0.16358]
[1617494477597,1.0,56721.0,56700.0,0.16358]
[1617494477997,0.10725655,56725.0,56700.0,0.16358]
[1617494478200,0.10725655,56725.0,56709.0,1.0]
[1617494478396,0.10725655,56725.0,56724.0,0.10725655]
[1617494478596,0.10725655,56725.0,56724.0,0.23748655]
[1617494479397,0.10725655,56725.0,56724.0,0.13023]
[1617494479597,0.10725655,56725.0,56699.0,1.0]
[1617494479797,1.10725655,56725.0,56694.0,0.4958]
[1617494480197,1.0,56707.0,56694.0,0.4958]
[1617494480400,1.0,56704.0,56694.0,0.4958]
[1617494480599,0.10725655,56699.0,56694.0,0.4958]
[1617494481400,1.0,56697.0,56694.0,0.4958]
[1617494482001,1.0,56695.0,56694.0,0.4958]
[1617494482202,1.15251,56695.0,56694.0,0.4958]
[1617494483807,6.15251,56695.0,56694.0,0.4958]
[1617494484607,0.15251,56695.0,56694.0,0.4958]
[1617494484807,0.15251,56695.0,56693.0,0.18065585]
[1617494485007,6.15251,56695.0,56693.0,0.18065585]
[1617494485207,1.5,56694.0,56693.0,0.18065585]
[1617494485409,7.5,56694.0,56675.0,0.14069197]
[1617494485608,0.2,56693.0,56675.0,0.14069197]
[1617494485808,1.5,56692.0,56675.0,0.14069197]
[1617494486009,6.0,56676.0,56675.0,0.14069197]
[1617494486210,7.65988,56676.0,56675.0,0.14069197]
[1617494486607,7.76713655,56676.0,56675.0,0.14069197]
[1617494486807,7.76713655,56676.0,56675.0,0.07759197]
[1617494486808,11.41453655,56676.0,56675.0,0.07759197]
[1617494487012,11.41453655,56676.0,56665.0,1.0]
[1617494487409,0.253,56675.0,56665.0,0.9152]
[1617494487612,6.0,56666.0,56665.0,0.9132]
[1617494487812,7.7,56666.0,56665.0,0.8395]
[1617494488018,5.0221,56666.0,56665.0,0.822]
[1617494488214,11.0221,56666.0,56665.0,0.6738]
[1617494488412,11.0221,56666.0,56620.0,0.002]
[1617494488615,0.10725655,56654.0,56653.0,0.11339887]
[1617494488913,1.96295655,56654.0,56650.0,0.12759052]
[1617494489713,1.96295655,56654.0,56620.0,0.002]
[1617494489912,2.01565655,56654.0,56649.0,0.07910405]
[1617494490313,6.0,56650.0,56649.0,0.01010405]
[1617494490513,7.7,56650.0,56649.0,4.05e-06]
[1617494490713,1.7,56650.0,56649.0,4.05e-06]
[1617494490914,7.7,56650.0,56620.0,0.002]
[1617494491115,7.7,56650.0,56640.0,0.02023457]
[1617494491314,6.0,56641.0,56640.0,0.02023457]
[1617494491512,7.86472,56641.0,56640.0,0.02023457]
[1617494491919,1.86472,56641.0,56640.0,0.02023457]
[1617494492116,8.1309793,56641.0,56620.0,0.002]
[1617494492326,3.1077,56621.0,56615.0,0.0527]
[1617494492517,1.5,56620.0,56618.0,0.01911771]
[1617494492721,6.30725655,56619.0,56618.0,0.01911771]
[1617494492917,7.80725655,56619.0,56586.0,0.0522]
[1617494493320,1.80725655,56619.0,56574.0,0.0531]
[1617494493524,1.80725655,56619.0,56602.0,0.1937]
[1617494493525,6.0,56603.0,56602.0,0.1937]
[1617494493722,1.82406,56603.0,56602.0,0.1937]
[1617494493920,7.82406,56603.0,56602.0,0.1712]
[1617494494120,7.82406,56603.0,56601.0,0.053]
[1617494494319,7.82406,56603.0,56586.0,0.0527]
[1617494494521,7.82406,56603.0,56574.0,0.0531]
[1617494494720,0.10725655,56587.0,56574.0,0.0531]
[1617494494921,1.7,56586.0,56574.0,0.0364]
[1617494495120,9.1708,56575.0,56568.0,0.01124693]
[1617494495321,1.7,56574.0,56568.0,0.01124693]
[1617494495720,6.0,56569.0,56568.0,0.01124693]
[1617494495921,1.7,56569.0,56523.0,0.30070096]
[1617494496323,1.7,56569.0,56558.0,0.0367]
[1617494496324,7.7,56569.0,56558.0,0.0367]
[1617494496523,1.7,56569.0,56558.0,0.0367]
[1617494496725,6.10725655,56559.0,56558.0,0.0367]
[1617494496922,7.97498655,56559.0,56551.0,0.00033374]
[1617494497123,7.97498655,56559.0,56503.0,0.44114687]
[1617494497124,7.97498655,56559.0,56544.0,0.0368]
[1617494497326,1.97498655,56559.0,56506.0,0.10733547]
[1617494497526,6.0,56552.0,56507.0,0.053]
[1617494497725,1.5,56551.0,56502.0,0.21868506]
[1617494497927,6.0,56545.0,56499.0,0.36100099]
[1617494498126,1.0,56507.0,56495.0,0.0533]
[1617494498326,1.0,56516.0,56495.0,0.0513]
[1617494498525,1.0,56500.0,56495.0,0.0513]
[1617494498725,1.0,56509.0,56499.0,0.10725655]
[1617494498927,1.0,56516.0,56499.0,0.10725655]
[1617494499124,5.0,56544.0,56499.0,0.10725655]
[1617494499125,1.0,56510.0,56499.0,0.10725655]
[1617494499325,5.0,56538.0,56499.0,0.10725655]
[1617494499326,0.0536,56509.0,56499.0,0.10725655]
[1617494499525,0.0534,56530.0,56499.0,0.10725655]
[1617494499526,1.0,56510.0,56499.0,0.10725655]
[1617494499927,1.0,56524.0,56499.0,0.10725655]
[1617494500127,0.00903212,56631.0,56499.0,0.10725655]
[1617494500326,1.0,56524.0,56499.0,0.10725655]
[1617494500526,1.0,56519.0,56499.0,0.10725655]
[1617494500728,1.0,56519.0,56491.0,0.10725655]
[1617494500729,0.10525655,56500.0,56491.0,0.10725655]
[1617494501126,0.053,56499.0,56491.0,0.10725655]
[1617494501326,0.0527,56510.0,56499.0,1.0]
[1617494501528,1.0,56528.0,56499.0,1.0]
[1617494501727,1.0,56518.0,56491.0,0.10725655]
[1617494502327,0.12964,56547.0,56491.0,0.10725655]
[1617494502529,1.0,56536.0,56508.0,1.0]
[1617494502727,1.0,56536.0,56530.0,0.10725655]
[1617494502929,0.0533,56535.0,56530.0,0.10725655]
[1617494503329,0.0533,56535.0,56531.0,0.0537]
[1617494503529,2.8927,56544.0,56530.0,0.10725655]
[1617494503931,1.0,56570.0,56542.0,1.0]
[1617494504131,1.0,56570.0,56542.0,1.10724]
[1617494504331,3.5918,56579.0,56542.0,1.10724]
[1617494504332,1.0,56573.0,56543.0,1.0]
[1617494504731,1.0,56573.0,56561.0,0.10725655]
[1617494504931,1.0,56573.0,56561.0,0.23185655]
[1617494505155,1.0,56590.0,56562.0,1.0]
[1617494505345,1.0,56587.0,56561.0,0.23185655]
[1617494505558,0.053,56608.0,56561.0,0.23185655]
[1617494505760,3.3415,56610.0,56561.0,0.23185655]
[1617494505953,3.3415,56610.0,56562.0,0.0525]
[1617494506356,0.0090592,56654.0,56609.0,6.0]
[1617494506557,2.9953,56624.0,56609.0,0.1683]
[1617494506755,0.10725655,56610.0,56609.0,0.1683]
[1617494506933,2.6904,56640.0,56609.0,0.1683]
[1617494507133,0.0527,56639.0,56609.0,0.1683]
[1617494507333,2.6904,56640.0,56634.0,1.0]
[1617494507534,2.6904,56640.0,56634.0,0.13323]
[1617494507933,1.0,56655.0,56634.0,0.13323]
[1617494508134,8.3746,56684.0,56639.0,1.0]
[1617494508135,1.0,56668.0,56639.0,1.0]
[1617494508334,1.0,56669.0,56640.0,1.0]
[1617494508534,1.0,56669.0,56641.0,1.0]
[1617494508734,1.0,56672.0,56644.0,1.0]
[1617494508934,1.0,56670.0,56642.0,1.10725655]
[1617494509135,1.0,56671.0,56643.0,1.0]
[1617494509337,1.0,56673.0,56644.0,0.99896486]
[1617494509535,1.0,56673.0,56642.0,0.10725655]
[1617494509536,3.3746,56684.0,56642.0,0.10725655]
[1617494509937,3.3746,56684.0,56634.0,0.13323]
[1617494510136,1.0,56657.0,56634.0,0.13323]
[1617494510335,1.0,56659.0,56634.0,0.13323]
[1617494510535,1.0,56651.0,56634.0,0.13323]
[1617494510734,0.10725655,56635.0,56634.0,0.13323]
[1617494511134,1.10725655,56635.0,56606.0,1.0]
[1617494511336,1.10725655,56635.0,56602.0,1.0]
[1617494511535,1.10725655,56635.0,56578.0,0.002]
[1617494511736,1.0,56625.0,56597.0,1.0]
[1617494511938,1.0,56628.0,56600.0,1.0]
[1617494512136,1.0,56632.0,56604.0,1.0]
[1617494512535,0.10725655,56635.0,56597.0,0.12564]
[1617494512737,1.0,56630.0,56602.0,1.0]
[1617494513139,1.0,56641.0,56612.0,1.0]
[1617494513338,1.0,56643.0,56615.0,1.0]
[1617494513738,1.0,56647.0,56618.0,1.0]
[1617494513937,1.0,56647.0,56612.0,0.1241]
[1617494513938,3.1315,56653.0,56612.0,0.1241]
[1617494514139,1.0,56651.0,56623.0,1.0]
[1617494514339,1.0,56657.0,56628.0,1.0]
[1617494514541,0.47133814,56690.0,56628.0,0.13699]
[1617494514739,1.0,56659.0,56635.0,0.10725655]
[1617494514939,1.0,56668.0,56639.0,1.0]
[1617494515139,0.2,56690.0,56635.0,0.10725655]
[1617494515341,1.0,56669.0,56640.0,1.0]
[1617494515542,0.2,56690.0,56640.0,0.15039]
[1617494515742,1.0,56672.0,56644.0,1.0]
[1617494515945,1.0,56673.0,56645.0,1.0]
[1617494516343,1.0,56689.0,56660.0,1.0]
[1617494516544,1.0,56689.0,56660.0,1.11789]
[1617494516743,0.00915305,56701.0,56678.0,0.10725655]
[1617494516943,0.00915305,56701.0,56678.0,0.25676655]
[1617494517147,0.45321194,56715.0,56678.0,0.25676655]
[1617494517148,1.0,56698.0,56678.0,0.25676655]
[1617494517343,1.0,56707.0,56679.0,1.0]
[1617494517543,1.0,56713.0,56685.0,1.0]
[1617494517944,3.0081,56728.0,56678.0,0.25676655]
[1617494518343,1.0,56720.0,56692.0,1.0]
[1617494518546,0.00919454,56737.0,56692.0,0.14453]
[1617494518547,1.0,56718.0,56692.0,0.14453]
[1617494518945,1.0,56714.0,56692.0,0.14453]
[1617494519146,1.0,56709.0,56692.0,0.14453]
[1617494519546,0.10871601,56743.0,56680.0,1.0]
[1617494519547,1.0,56708.0,56680.0,1.0]
[1617494519747,0.00920034,56740.0,56678.0,0.14951]
[1617494519946,0.10871692,56743.0,56678.0,0.14847573]
[1617494520346,1.0,56722.0,56693.0,1.0]
[1617494520546,1.0,56719.0,56693.0,0.12321]
[1617494520747,0.10725655,56694.0,56693.0,0.12321]
[1617494520968,1.0,56737.0,56709.0,1.0]
[1617494521166,1.0,56736.0,56709.0,0.12459]
[1617494521350,0.00924956,56735.0,56709.0,0.12459]
[1617494521548,0.00924956,56735.0,56713.0,1.0]
[1617494521749,0.1052,56741.0,56716.0,1.0]
[1617494522148,0.1052,56741.0,56717.0,1.0]
[1617494522556,0.1052,56741.0,56718.0,1.0]
[1617494522749,0.10725655,56719.0,56718.0,0.10725655]
[1617494523150,1.0,56745.0,56718.0,0.10725655]
[1617494523350,1.0,56746.0,56718.0,1.10725655]
[1617494523750,1.0,56750.0,56722.0,1.0]
[1617494523951,0.0093016,56768.0,56722.0,0.11438]
[1617494524349,1.0,56744.0,56722.0,0.11438]
[1617494524551,1.0,56751.0,56722.0,1.11438]
[1617494524750,1.0,56752.0,56738.0,0.10725655]
[1617494524952,0.33163436,56772.0,56738.0,0.10725655]
[1617494524953,1.0,56754.0,56738.0,0.21620655]
[1617494525150,1.0,56763.0,56738.0,0.21620655]
[1617494525352,1.0,56766.0,56738.0,0.21620655]
[1617494525550,0.00930656,56773.0,56738.0,0.21620655]
[1617494525752,1.0,56762.0,56738.0,0.21620655]
[1617494525950,1.0,56747.0,56718.0,1.0]
[1617494526150,1.12282,56747.0,56718.0,1.0]
[1617494526351,1.0,56739.0,56706.0,1.0]
[1617494526552,0.32282,56747.0,56629.0,0.35725201]
[1617494526751,0.32282,56747.0,56710.0,0.10725655]
[1617494526951,1.0,56729.0,56710.0,0.10725655]
[1617494527152,0.32282,56747.0,56710.0,0.10725655]
[1617494527153,1.0,56728.0,56710.0,0.10725655]
[1617494527352,1.0,56729.0,56710.0,0.10725655]
[1617494527553,0.1599,56762.0,56710.0,0.10725655]
[1617494527752,1.0,56738.0,56710.0,0.10725655]
[1617494527953,1.0,56736.0,56710.0,0.10725655]
[1617494528152,1.0,56737.0,56710.0,0.10725655]
[1617494528554,1.0,56734.0,56710.0,0.10725655]
[1617494528755,0.10725655,56711.0,56689.0,1.0]
[1617494529155,0.10725655,56711.0,56688.0,0.10725655]
[1617494529355,1.0,56699.0,56671.0,1.0]
[1617494529555,1.7,56698.0,56671.0,1.0]
[1617494529755,1.0,56689.0,56643.0,1.0]
[1617494529956,0.2,56688.0,56643.0,1.0]
[1617494530156,1.0,56672.0,56641.0,1.0]
[1617494530356,1.5,56671.0,56613.0,5.0]
[1617494530559,0.2662593,56643.0,56604.0,0.29989611]
[1617494530757,0.10725655,56605.0,56570.0,0.30000377]
[1617494530956,1.5,56604.0,56570.0,0.30000377]
[1617494531156,1.0,56571.0,56567.0,0.36000453]
[1617494531356,1.12652,56571.0,56547.0,0.30012941]
[1617494531556,0.12652,56571.0,56547.0,0.30012941]
[1617494531757,0.12652,56571.0,56535.0,0.30020972]
[1617494531958,1.0,56570.0,56542.0,1.0]
[1617494532158,0.12652,56571.0,56551.0,1.0]
[1617494532659,1.0,56580.0,56552.0,1.0]
[1617494532867,1.0,56580.0,56579.0,0.10725655]
[1617494533062,1.0,56590.0,56579.0,0.10725655]
[1617494533257,1.0,56594.0,56579.0,0.10725655]
[1617494533659,0.17135,56643.0,56579.0,0.10725655]
[1617494533858,1.0,56602.0,56579.0,0.10725655]
[1617494534256,1.0,56604.0,56579.0,0.10725655]
[1617494534457,1.0,56610.0,56582.0,1.0]
[1617494534658,5.0,56638.0,56582.0,1.0]
[1617494534861,1.0,56651.0,56637.0,0.10725655]
[1617494535058,3.0773,56658.0,56637.0,0.05280655]
[1617494535261,3.0773,56658.0,56640.0,1.0]
[1617494535460,0.00923557,56674.0,56637.0,0.05280655]
[1617494535659,1.0,56669.0,56640.0,1.0]
[1617494535858,1.0,56660.0,56637.0,0.05280655]
[1617494536061,1.0,56659.0,56637.0,0.05280655]
[1617494536259,1.0,56642.0,56614.0,1.0]
[1617494536461,1.0,56638.0,56604.0,1.0]
[1617494536659,1.0,56638.0,56603.0,1.0]
[1617494536863,1.0,56634.0,56614.0,0.10725655]
[1617494537258,1.5,56655.0,56614.0,0.10725655]
[1617494537259,1.0,56632.0,56614.0,0.10725655]
[1617494538059,0.16831,56637.0,56614.0,0.10725655]
[1617494538260,1.0,56633.0,56614.0,0.10725655]
[1617494538459,1.0,56644.0,56616.0,1.0]